{"text_format":"1","workbook":"xlsx","n_sheets":1,"sheets":["Data"],"not_rendered":{"charts":1,"images":0,"macros":1,"external_links":0,"defined_names":0,"comments":0,"pivot_tables":0},"unopened":[],"bounds":{"document_bytes":16777216,"sheet_cells":100000,"rows_first":2000,"rows_last":500,"rows_between":2000,"halvings":0,"cell_chars":16384,"cell_head_chars":4096},"cells_cut":0,"cells_raw":0,"read":"whole","date_system":"1900"}

{"sheet":"Data","index":0,"n_rows":32,"n_cols":23,"rows_kept":32,"cut":false,"hidden":false,"merged":[]}
["Correction Measurement Type",null,null,null,null,null,null,null,null,null,null,null,null,null,null,null,null,null,"EX: 052521 TH21-HMA-L1-CL-12R"]
["                     ",null,null,null,null,null,null,null,null,null,null,null,null,null,null,null,null,null,"Plot Title"]
["Correction Method"]
["                     "]
[]
["File Name","Measurement Type","SN191 Adjustment","SN196 Adjustment","SN312 Adjustment","Start Dist, ft.","End Dist, ft.","Total Dist","start (STA)","stop (STA)","start (STA)","stop (STA)","mid (STA)",{"$f":"C6","v":"SN191 Adjustment"},{"$f":"D6","v":"SN196 Adjustment"},{"$f":"E6","v":"SN312 Adjustment"},null,{"$f":"setChartAxis(\"Data\",\"Chart 2\",\"Max\",\"Value\",\"Primary\",R8)","v":"Value Primary Max: 0.5"}]
[null,null,null,null,null,null,null,null,null,null,null,null,null,null,null,null,null,"% Gmm Max"]
[null,null,null,null,null,null,null,{"$f":"ABS(G8-F8)","v":0},{"$f":"MIN(F8:G8)/100","v":0},{"$f":"MAX(F8:G8)/100","v":0},{"$f":"IF($H8>100,I8,\"\")","v":""},{"$f":"IF($H8>100,J8,\"\")","v":""},{"$f":"IF($H8>100,AVERAGE(K8:L8),\"\")","v":""},{"$f":"IF($H8>100,C8,\"\")","v":""},{"$f":"IF($H8>100,D8,\"\")","v":""},"",null,0.5]
[null,null,null,null,null,null,null,{"$f":"ABS(G9-F9)","v":0},{"$f":"MIN(F9:G9)/100","v":0},{"$f":"MAX(F9:G9)/100","v":0},{"$f":"IF($H9>100,I9,\"\")","v":""},{"$f":"IF($H9>100,J9,\"\")","v":""},{"$f":"IF($H9>100,AVERAGE(K9:L9),\"\")","v":""},{"$f":"IF($H9>100,C9,\"\")","v":""},{"$f":"IF($H9>100,D9,\"\")","v":""},{"$f":"IF($H9>100,E9,\"\")","v":""},null,{"$f":"setChartAxis(\"Data\",\"Chart 2\",\"Min\",\"Value\",\"Primary\",R11)","v":"Value Primary Min: -0.5"}]
[null,null,null,null,null,null,null,0,0,0,"","","","","","",null,"% Gmm Min"]
[null,null,null,null,null,null,null,0,0,0,"","","","","","",null,-0.5]
[null,null,null,null,null,null,null,0,0,0,"","","","","",""]
[null,null,null,null,null,null,null,0,0,0,"","","","","","",null,"Upper Limit"]
[null,null,null,null,null,null,null,0,0,0,"","","","","","",null,0.08]
[null,null,null,null,null,null,null,0,0,0,"","","","","","",null,"Lower Limit"]
[null,null,null,null,null,null,null,0,0,0,"","","","","","",null,-0.08]
[null,null,null,null,null,null,null,0,0,0,"","","","","",""]
[null,null,null,null,null,null,null,0,0,0,"","","","","",""]
[null,null,null,null,null,null,null,0,0,0,"","","","","",""]
[null,null,null,null,null,null,null,0,0,0,"","","","","",""]
[null,null,null,null,null,null,null,0,0,0,"","","","","",""]
[null,null,null,null,null,null,null,0,0,0,"","","","","",""]
[null,null,null,null,null,null,null,0,0,0,"","","","","",""]
[null,null,null,null,null,null,null,0,0,0,"","","","","",""]
[null,null,null,null,null,null,null,0,0,0,"","","","","",""]
[]
[]
[]
[]
[null,null,null,null,null,null,null,null,null,null,null,null,null,null,null,null,null,null,null,null,null,{"$f":"setChartAxis(\"Data\",\"Chart 2\",\"Min\",\"X\",\"Primary\",V32)","v":"X Primary Min: 0"},{"$f":"setChartAxis(\"Data\",\"Chart 2\",\"Max\",\"X\",\"Primary\",W32)","v":"X Primary Max: 0"}]
[null,null,null,null,null,null,null,null,null,null,null,null,null,null,null,null,null,null,null,null,null,"Stationing Min","Stationing Max"]
[null,null,null,null,null,null,null,null,null,null,null,null,null,null,null,null,null,null,null,null,null,{"$f":"MIN(K7:K382)","v":0},{"$f":"MAX(L7:L382)","v":0}]